bitfinex-derivatives/quotes_ETHF0:USTF0_20250426
["timestamp","ask_amount","ask_price","bid_price","bid_amount"]
[1745656751663,9.89351513,1827.4,1827.3,5.918]
[1745656752074,8.79941513,1827.4,1827.3,5.918]
[1745656752276,1.93711513,1827.4,1827.3,5.918]
[1745656752575,3.03121513,1827.4,1827.3,5.918]
[1745656754578,3.03120642,1827.4,1827.3,5.918]
[1745656757577,3.03120715,1827.4,1827.3,5.918]
[1745656759083,3.03120731,1827.4,1827.3,5.918]
[1745656760786,3.03120731,1827.4,1826.9,0.00558901]
[1745656760787,1.09434,1827.0,1826.9,0.00558901]
[1745656761077,9.12854731,1827.0,1826.9,9.01e-06]
[1745656762283,19.43658131,1827.0,1826.9,9.01e-06]
[1745656762969,14.43658131,1827.0,1826.9,9.01e-06]
[1745656763182,9.12858131,1827.0,1826.9,9.01e-06]
[1745656763888,9.12858234,1827.0,1826.9,9.01e-06]
[1745656764184,14.43658234,1827.0,1826.9,9.01e-06]
[1745656765387,1.09469,1826.4,1826.3,5.918]
[1745656765587,5.92213963,1826.4,1826.3,5.918]
[1745656766184,7.82633963,1826.4,1826.3,5.918]
[1745656766886,7.82634748,1826.4,1826.3,5.918]
[1745656767681,9.04434,1826.7,1826.3,10.918]
[1745656767890,1.18002525,1826.6,1826.4,3.8485]
[1745656768080,1.09458,1826.6,1826.4,3.8485]
[1745656768386,1.09464,1826.5,1826.4,3.8485]
[1745656769079,1.18009365,1826.5,1826.4,3.8485]
[1745656769281,1.09464,1826.5,1826.4,3.8485]
[1745656769480,2.99878,1826.6,1826.4,3.8485]
[1745656769687,7.9498,1826.7,1826.4,3.8485]
[1745656769886,7.9498,1826.7,1826.3,5.918]
[1745656769887,1.09459,1826.6,1826.3,5.918]
[1745656770085,2.95599,1826.6,1826.3,5.918]
[1745656770290,1.09464,1826.5,1826.4,1.9676]
[1745656770489,2.95602,1826.6,1826.4,1.9676]
[1745656770692,4.30244,1826.5,1826.4,1.9676]
[1745656770891,10.99229405,1826.5,1826.4,1.9676]
[1745656771085,1.09469,1826.4,1826.3,7.875]
[1745656771291,3.04155077,1826.4,1826.3,7.875]
[1745656772190,3.04155077,1826.4,1826.3,5.918]
[1745656773195,3.04155686,1826.4,1826.3,5.918]
[1745656773595,4.68361686,1826.4,1825.9,1.9956]
[1745656773795,3.2078,1826.1,1825.8,5.918]
[1745656773995,4.743,1826.0,1825.9,1.9956]
[1745656774190,5.83793,1826.0,1825.9,1.9956]
[1745656774791,4.743,1826.0,1825.7,3.2078]
[1745656774995,5.94544,1825.8,1825.1,1.9956]
[1745656775293,1.09525,1825.5,1825.4,1.9591]
[1745656775497,5.83825,1825.5,1825.4,1.9591]
[1745656776393,4.743,1825.5,1825.4,1.9591]
[1745656776595,5.92373559,1825.5,1825.4,1.9591]
[1745656776792,4.82850539,1825.5,1825.4,1.9591]
[1745656777094,4.82850656,1825.5,1825.4,1.9591]
[1745656777285,5.83823,1825.5,1825.4,1.9591]
[1745656777485,5.92373625,1825.5,1825.4,1.9591]
[1745656777689,5.83823,1825.5,1825.4,1.9591]
[1745656777894,7.84033574,1825.5,1825.4,1.9591]
[1745656778396,7.84033792,1825.5,1825.4,1.9591]
[1745656779190,7.75483,1825.5,1825.4,1.9591]
[1745656779390,7.84033928,1825.5,1825.4,1.9591]
[1745656779885,1.09535,1825.3,1825.2,5.918]
[1745656780893,1.18086801,1825.3,1825.2,5.918]
[1745656781100,8.47446801,1825.3,1825.2,5.918]
[1745656781596,7.37911801,1825.3,1824.9,3.7957]
[1745656781794,1.09553,1825.1,1824.9,3.7957]
[1745656782093,4.745,1825.0,1824.9,3.7957]
[1745656782295,4.745,1825.0,1824.9,14.01709]
[1745656782494,4.745,1825.0,1824.9,19.01709]
[1745656782684,4.745,1825.0,1824.9,9.7137]
[1745656782889,4.745,1825.0,1824.9,14.7137]
[1745656783491,4.745,1825.0,1824.9,9.7137]
[1745656784094,4.745,1825.0,1824.9,10.80929]
[1745656784395,4.745,1825.0,1824.9,14.01709]
[1745656784798,5.94593,1825.5,1824.9,17.9215]
[1745656784799,3.2078,1825.5,1824.9,17.9215]
[1745656784993,7.9528,1825.5,1824.9,9.7137]
[1745656785201,1.09553,1825.0,1824.9,9.7137]
[1745656787097,3.10123,1825.0,1824.9,9.7137]
[1745656787304,7.9528,1825.1,1824.9,9.7137]
[1745656788203,1.09553,1825.0,1824.9,9.7137]
[1745656788403,9.04832,1825.1,1824.9,9.7137]
[1745656789696,7.9528,1825.1,1824.9,10.80927]
[1745656790003,7.9528,1825.1,1824.9,10.80926]
[1745656790901,7.9528,1825.1,1824.9,9.7137]
[1745656791099,7.9528,1825.1,1824.9,10.80928]
[1745656791305,9.04827,1825.1,1825.0,0.00323346]
[1745656792099,19.44180514,1825.1,1825.0,0.00323346]
[1745656792999,14.44180514,1825.1,1825.0,0.00323346]
[1745656793308,14.44180891,1825.1,1825.0,0.00323346]
[1745656798114,1.09583,1824.5,1824.4,5.918]
[1745656798310,5.83283,1824.5,1824.4,5.918]
[1745656799714,5.918402,1824.5,1824.4,5.918]
[1745656800106,1.09602,1824.2,1824.1,5.1674]
[1745656800406,1.09614,1824.0,1823.9,5.918]
[1745656800608,4.737,1824.1,1824.0,1.09614]
[1745656800806,4.737,1824.1,1824.0,1.9596]
[1745656801006,1.09614,1824.0,1823.9,5.918]
[1745656801805,1.09614,1824.0,1823.4,5.73935]
[1745656801806,1.09644,1823.5,1823.4,5.73935]
[1745656802107,5.83444,1823.5,1823.4,5.73935]
[1745656803309,7.72304,1823.5,1823.4,5.73935]
[1745656803711,6.6266,1823.5,1823.4,5.73935]
[1745656804014,4.738,1823.5,1823.4,5.73935]
[1745656804209,4.738,1823.5,1823.4,10.73935]
[1745656804413,4.738,1823.5,1823.4,11.47491484]
[1745656804716,4.738,1823.5,1823.4,12.57141484]
[1745656804913,7.9468,1823.8,1823.5,1.0964]
[1745656805217,1.09632,1823.7,1823.6,1.9057]
[1745656806412,7.9468,1823.8,1823.7,1.09632]
[1745656806608,10.68751,1823.8,1823.4,3.77975]
[1745656806808,2.7411,1823.5,1823.0,5.6131]
[1745656807017,9.7988,1823.4,1823.0,5.6131]
[1745656807315,1.09665,1823.2,1823.0,5.6131]
[1745656807916,9.7988,1823.4,1823.0,6.70984]
[1745656808107,1.09662,1823.2,1823.0,9.91764]
[1745656808309,9.7988,1823.4,1823.0,9.91764]
[1745656808310,7.9468,1823.4,1823.2,1.09658]
[1745656808509,9.04333,1823.4,1823.3,1.8522]
[1745656809908,5.83553,1823.4,1823.3,1.8522]
[1745656810211,4.74,1823.7,1823.3,6.8522]
[1745656810515,1.0965,1823.4,1823.3,1.8522]
[1745656810707,1.0965,1823.4,1823.2,3.2078]
[1745656811207,6.7795,1823.7,1823.2,1.0966]
[1745656811208,1.09648,1823.5,1823.2,1.0966]
[1745656811609,1.0965,1823.4,1823.2,3.2078]
[1745656812513,1.0965,1823.4,1823.2,4.30441]
[1745656812714,1.0965,1823.4,1823.2,6.98755]
[1745656813018,1.09653,1823.4,1823.2,8.08416]
[1745656813316,7.73038,1823.5,1823.2,8.08416]
[1745656813517,4.74,1823.5,1823.2,6.98755]
[1745656813720,1.09655,1823.4,1823.2,6.98755]
[1745656814216,1.09656,1823.3,1823.2,6.98755]
[1745656815422,1.8939,1823.4,1823.2,6.98755]
[1745656816114,4.74,1823.5,1823.3,1.09656]
[1745656816312,1.09645,1823.5,1823.3,1.09656]
[1745656816516,0.08559406,1824.0,1823.9,1.0962]
[1745656816719,0.08559406,1824.0,1823.9,4.87595]
[1745656817123,0.08559406,1824.0,1823.9,9.08775]
[1745656817419,1.18173406,1824.0,1823.9,9.08775]
[1745656817620,0.08559406,1824.0,1823.9,10.18395]
[1745656818314,0.08559406,1824.0,1823.9,4.87595]
[1745656818509,1.09596,1824.3,1823.9,12.72108153]
[1745656818713,6.7191,1824.4,1823.9,3.77975]
[1745656818921,1.09614,1824.0,1823.9,3.77975]
[1745656819324,5.83614,1824.0,1823.9,3.77975]
[1745656820329,7.9478,1824.0,1823.6,7.61605]
[1745656820517,3.2078,1823.7,1823.1,6.98755]
[1745656820828,7.81551,1823.6,1823.2,1.83167666]
[1745656821014,7.81551,1823.6,1823.2,1.09658]
[1745656821212,7.81551,1823.6,1823.2,3.77975]
[1745656821213,6.7191,1823.6,1823.2,3.77975]
[1745656821421,7.81551,1823.6,1823.2,3.77975]
[1745656821625,7.81551,1823.6,1823.3,1.09654]
[1745656821824,1.09647,1823.5,1823.2,3.77975]
[1745656822013,2.0053,1823.4,1823.3,1.09656]
[1745656822220,4.74,1823.6,1823.5,1.09644]
[1745656822830,4.74,1823.6,1823.5,1.8321355]
[1745656823022,4.73,1823.9,1823.8,1.09626]
[1745656823514,3.2078,1824.1,1824.0,1.09614]
[1745656823718,3.2078,1824.1,1823.9,2.96495]
[1745656823915,3.2078,1824.1,1823.9,2.96497]
[1745656824119,3.2078,1824.1,1823.9,1.8688]
[1745656824315,4.30388,1824.1,1823.9,1.8688]
[1745656824519,1.09608,1824.1,1823.9,1.8688]
[1745656824724,4.73,1824.2,1824.0,1.09613]
[1745656824931,4.73,1824.2,1824.1,2.65797232]
[1745656825230,1.09598,1824.3,1824.1,6.67627232]
[1745656825428,1.09598,1824.3,1824.1,5.9404]
[1745656825618,1.09602,1824.2,1824.1,4.0183]
[1745656825819,1.09602,1824.2,1824.1,4.75454682]
[1745656826019,2.96643,1824.4,1824.1,5.85060682]
[1745656826226,2.96643,1824.4,1824.2,0.73619804]
[1745656826426,1.09596,1824.3,1824.1,4.0183]
[1745656826627,1.09602,1824.2,1824.1,1.9829]
[1745656826930,2.96652,1824.2,1824.1,2.71968546]
[1745656827122,1.8705,1824.2,1824.1,2.71968546]
[1745656827824,1.09599,1824.3,1824.1,3.81576546]
[1745656828022,1.9772,1824.4,1824.2,0.73700895]
[1745656828221,1.9772,1824.4,1824.1,1.9829]
[1745656828429,4.30367,1824.5,1824.2,1.83322807]
[1745656828624,4.30367,1824.5,1824.2,1.09598]
[1745656828625,1.0959,1824.4,1824.2,1.09598]
[1745656828826,1.0959,1824.4,1824.2,3.10558]
[1745656829021,5.185,1824.5,1824.2,2.0096]
[1745656829022,1.09596,1824.3,1824.2,2.0096]
[1745656829324,1.09602,1824.2,1824.1,1.9829]
[1745656829630,3.9507,1824.7,1824.4,1.09586]
[1745656829631,4.73,1824.7,1824.4,1.09586]
[1745656829931,3.073,1824.6,1824.4,3.2078]
[1745656830127,1.9772,1824.6,1824.4,4.30368]
[1745656830330,1.9772,1824.6,1824.4,3.2078]
[1745656830531,1.9772,1824.6,1824.4,4.30367]
[1745656831034,1.9772,1824.6,1824.5,1.09583]
[1745656831231,4.73,1824.7,1824.6,1.09577]
[1745656831424,4.73,1824.7,1824.4,3.2078]
[1745656831627,1.09578,1824.6,1824.4,3.2078]
[1745656831826,2.95558,1824.6,1824.4,4.30366]
[1745656832028,2.95558,1824.6,1824.4,1.09586]
[1745656832221,1.8598,1824.6,1824.2,6.98755]
[1745656832422,1.09596,1824.3,1824.2,6.98755]
[1745656833035,1.09596,1824.3,1824.2,3.77975]
[1745656833423,5.82496,1824.3,1824.2,3.77975]
[1745656833627,7.72476,1824.3,1824.2,3.77975]
[1745656834038,7.72476,1824.3,1823.9,3.77975]
[1745656834039,1.09614,1824.0,1823.9,3.77975]
[1745656834230,17.1835,1824.3,1823.9,3.77975]
[1745656834540,1.09614,1824.0,1823.9,3.77975]
[1745656835137,1.09637,1823.7,1823.5,3.77975]
[1745656835333,5.82537,1823.7,1823.5,3.77975]
[1745656835532,1.8998,1823.6,1823.5,3.77975]
[1745656835933,1.8998,1823.6,1823.2,3.77975]
[1745656836134,1.09653,1823.4,1823.2,3.77975]
[1745656836326,1.9347,1823.3,1823.2,3.77975]
[1745656836924,1.9347,1823.3,1823.2,4.87637]
[1745656837532,9.03314,1823.7,1823.4,1.09649]
[1745656837731,1.9347,1823.5,1823.4,1.09649]
[1745656837940,1.09599,1824.3,1823.5,2.7411]
[1745656838136,1.09604,1824.2,1824.0,3.2078]
[1745656838437,1.9347,1824.1,1824.0,3.2078]
[1745656838640,3.03078,1824.1,1824.0,3.2078]
[1745656838941,1.09626,1823.8,1823.7,3.2078]
[1745656839139,1.09632,1823.7,1823.6,5.81085]
[1745656839339,4.73,1824.0,1823.6,5.81085]
[1745656839537,1.8683,1823.9,1823.6,5.81085]
[1745656839738,1.09632,1823.7,1823.6,5.81085]
[1745656840037,1.09632,1823.7,1823.6,3.77975]
[1745656841641,10.90231,1823.9,1823.6,3.77975]
[1745656841842,9.8061,1823.9,1823.6,4.8761]
[1745656842333,9.8061,1823.9,1823.7,5.00851]
[1745656843037,9.8061,1823.9,1823.7,3.9122]
[1745656843243,1.8683,1823.9,1823.7,9.2202]
[1745656843431,2.9645,1823.9,1823.7,9.2202]
[1745656843642,1.8683,1823.9,1823.7,10.31649]
[1745656843933,5.82603,1824.2,1823.9,1.09615]
[1745656844138,1.09608,1824.1,1824.0,1.9173]
[1745656844339,1.09614,1824.0,1823.9,3.77975]
[1745656845034,3.11684,1824.0,1823.9,3.77975]
[1745656845438,3.11684,1824.0,1823.9,5.74205]
[1745656845739,2.0207,1824.0,1823.9,5.74205]
[1745656846039,5.2472,1824.5,1823.9,11.47949713]
[1745656846339,1.09596,1824.3,1824.0,5.04133713]
[1745656846543,1.09606,1824.2,1824.1,2.69974713]
[1745656846840,1.09606,1824.2,1824.1,1.9623]
[1745656847043,1.09614,1824.0,1823.9,9.08775]
[1745656847243,1.09614,1824.0,1823.9,3.77975]
[1745656847538,1.09626,1823.8,1823.7,1.9949]
[1745656848241,1.8952,1823.9,1823.7,1.9949]
[1745656848541,4.73,1824.0,1823.8,1.09626]
[1745656848741,4.73,1824.0,1823.9,3.1137]
[1745656848949,3.2078,1824.1,1824.0,1.09614]
[1745656849133,3.2078,1824.1,1824.0,3.11364]
[1745656849441,1.9193,1824.2,1824.0,3.11362]
[1745656849637,3.01532,1824.2,1824.0,3.11362]
[1745656849838,1.9193,1824.2,1824.0,2.0175]
[1745656850044,1.09608,1824.1,1824.0,2.0175]
[1745656850443,3.01534,1824.2,1824.0,2.0175]
[1745656850642,1.9193,1824.2,1824.0,2.0175]
[1745656850842,3.01536,1824.2,1824.0,2.0175]
[1745656851036,1.9193,1824.2,1824.0,3.11363]
[1745656851233,4.73,1824.3,1824.1,1.09608]
[1745656851440,3.2078,1824.5,1824.2,4.047]
[1745656851735,4.30367,1824.5,1824.3,1.09595]
[1745656851947,1.0959,1824.4,1824.2,4.047]
[1745656852146,1.0959,1824.4,1824.2,5.14302]
[1745656852337,3.0341,1824.4,1824.2,4.047]
[1745656852646,3.03414,1824.4,1824.2,2.032]
[1745656852844,3.03414,1824.4,1824.2,4.047]
[1745656853144,1.9382,1824.4,1824.2,4.047]
[1745656853344,3.2078,1824.5,1824.4,1.0959]
[1745656853740,3.2078,1824.5,1824.3,4.87566]
[1745656854047,3.2078,1824.5,1824.4,2.015]
[1745656854539,5.0997,1824.5,1824.4,2.015]
[1745656854937,6.19553,1824.5,1824.4,2.015]
[1745656855241,1.0959,1824.4,1824.3,3.77975]
[1745656855545,2.9878,1824.4,1824.3,3.77975]
[1745656857339,2.74003,1824.3,1823.8,3.2078]
[1745656857545,6.6672,1824.2,1823.8,3.2078]
[1745656857748,1.09614,1824.0,1823.9,1.8613]
[1745656858242,1.09638,1823.6,1823.5,3.69415594]
[1745656858846,3.04458,1823.6,1823.5,3.69415594]
[1745656859551,4.30417,1823.7,1823.5,3.69415594]
[1745656859844,4.30417,1823.7,1823.6,1.8613]
[1745656860656,6.22527,1823.7,1823.6,1.8613]
[1745656861646,4.719,1823.8,1823.6,1.8613]
[1745656861847,1.09621,1823.9,1823.7,6.90195594]
[1745656862143,1.09621,1823.9,1823.8,3.9316]
[1745656862542,4.719,1824.1,1823.9,1.09615]
[1745656862750,4.719,1824.1,1823.9,8.93935594]
[1745656863051,6.6401,1824.4,1824.0,3.69415594]
[1745656863246,1.09596,1824.3,1824.1,6.34126]
[1745656863447,1.09596,1824.3,1824.2,5.73155594]
[1745656863652,1.09596,1824.3,1824.2,7.76875594]
[1745656863850,5.1289,1824.6,1824.2,13.86477594]
[1745656864046,1.09591,1824.4,1824.3,2.0634]
[1745656865152,1.09591,1824.4,1824.3,7.3714]
[1745656865850,1.09588,1824.5,1824.3,7.3714]
[1745656866056,3.00548,1824.5,1824.4,1.9292]
[1745656866357,5.81473,1824.7,1824.4,6.71920594]
[1745656866652,5.464,1824.4,1823.3,3.2078]
[1745656866847,1.09662,1823.2,1823.1,3.2078]
[1745656867045,1.09668,1823.1,1822.8,3.2078]
[1745656867351,1.09698,1822.6,1822.5,1.9025]
[1745656867547,7.9268,1822.8,1822.4,7.09549724]
[1745656867739,2.7414,1823.3,1822.2,18.10336871]
[1745656867740,3.2078,1823.0,1822.5,3.2078]
[1745656867948,1.8803,1823.4,1822.8,3.2078]
[1745656868143,5.9492,1823.3,1822.5,8.5158]
[1745656868444,4.30462,1822.9,1822.5,8.5158]
[1745656868646,1.8803,1822.8,1822.5,5.308]
[1745656868846,2.97717,1822.8,1822.5,5.308]
[1745656869050,1.8803,1822.8,1822.5,6.40504]
[1745656869249,1.8803,1822.8,1822.5,5.308]
[1745656869450,4.719,1823.2,1822.8,1.09681]
[1745656869646,5.81546,1823.5,1823.1,1.09666]
[1745656869855,1.09656,1823.3,1822.9,1.0968]
[1745656870046,3.01222,1823.4,1823.0,4.30454]
[1745656870247,1.9157,1823.4,1823.1,1.09667]
[1745656870447,1.9157,1823.4,1823.1,1.09665]
[1745656870650,4.719,1823.5,1823.3,1.09656]
[1745656870853,5.81548,1823.5,1823.2,3.2078]
[1745656871155,4.719,1823.5,1823.2,9.61237]
[1745656871456,4.719,1823.5,1823.3,3.01185]
[1745656871654,4.719,1823.5,1823.3,1.9153]
[1745656871850,4.719,1823.5,1823.4,2.0424]
[1745656872154,2.74026,1824.1,1823.4,2.0424]
[1745656872155,4.72,1823.9,1823.4,11.1682]
[1745656872357,5.81621,1823.9,1823.5,1.09644]
[1745656872650,1.9157,1823.8,1823.4,5.918]
[1745656872846,1.09644,1823.5,1823.4,5.918]
[1745656873754,3.00884,1823.5,1823.4,5.918]
[1745656873953,1.9124,1823.5,1823.4,5.918]
[1745656875351,1.9124,1823.5,1823.4,7.0145]
[1745656875655,1.9124,1823.5,1823.4,5.918]
[1745656876352,3.00884,1823.5,1823.4,5.918]
[1745656876557,7.72884,1823.5,1823.4,5.918]
[1745656877658,7.81379533,1823.5,1823.4,5.918]
[1745656878261,7.72884,1823.5,1823.4,5.918]
[1745656878652,7.81379611,1823.5,1823.4,5.918]
[1745656878850,7.81379555,1823.5,1823.4,5.918]
[1745656879963,12.81379555,1823.5,1823.4,5.918]
[1745656880262,12.81379836,1823.5,1823.4,5.918]
[1745656880664,1.09674,1823.0,1822.9,5.1876]
[1745656881059,1.09669,1823.1,1822.9,5.1876]
[1745656881257,1.0968,1822.9,1822.8,5.918]
[1745656881654,1.09686,1822.8,1822.7,0.00404997]
[1745656881959,6.25485481,1822.8,1822.7,0.00404997]
[1745656882155,10.96785481,1822.8,1822.7,0.00404997]
[1745656882461,15.96785481,1822.8,1822.7,0.00404997]
[1745656883258,15.96785481,1822.8,1822.7,9.97e-06]
[1745656884161,21.27585481,1822.8,1822.7,9.97e-06]
[1745656884752,21.27586076,1822.8,1822.7,9.97e-06]
[1745656886269,21.19086,1822.8,1822.7,9.97e-06]
[1745656886559,20.1790154,1822.8,1822.1,3.2078]
[1745656886864,1.0974,1821.9,1821.8,0.36069321]
[1745656887064,4.3902154,1821.9,1821.8,0.36069321]
[1745656887365,9.1032154,1821.9,1821.8,0.36069321]
[1745656887765,14.1032154,1821.9,1821.8,0.36069321]
[1745656888058,19.4112154,1821.9,1821.8,0.36069321]
[1745656888264,19.4112154,1821.9,1820.3,5.918]
[1745656888265,3.2078,1821.7,1820.3,5.918]
[1745656888564,3.2078,1821.3,1820.7,2.0354]
[1745656888760,3.2078,1821.1,1820.8,7.9028]
[1745656888955,1.09794,1821.0,1820.9,2.0354]
[1745656889265,7.9228,1821.1,1820.5,1.9194]
[1745656889266,1.09805,1820.9,1820.5,1.9194]
[1745656889461,3.2078,1820.7,1820.6,2.0354]
[1745656889766,1.09826,1820.5,1820.2,7.9028]
[1745656889953,1.0982,1820.6,1820.3,2.0354]
[1745656890157,1.09824,1820.5,1820.3,2.0354]
[1745656890356,7.9228,1820.7,1820.3,2.0354]
[1745656890554,7.9228,1820.7,1820.2,13.2108]
[1745656890555,1.09836,1820.3,1820.2,11.226]
[1745656890758,7.9228,1820.3,1820.2,11.226]
[1745656891161,7.9228,1820.3,1820.0,2.0354]
[1745656891352,3.2078,1820.1,1819.7,11.0452]
[1745656891557,7.9238,1820.1,1819.8,7.9054]
[1745656891757,7.9238,1820.1,1820.0,1.09854]
[1745656892164,7.9238,1820.1,1820.0,5.0]
[1745656892366,7.9238,1820.1,1820.0,1.09854]
[1745656892567,4.716,1820.6,1820.5,1.09824]
[1745656892754,7.9238,1820.6,1820.1,3.8662]
[1745656892958,1.09836,1820.3,1820.2,1.9874]
[1745656893463,3.2078,1820.4,1820.0,5.918]
[1745656893663,4.30614,1820.4,1820.1,1.9874]
[1745656893863,3.2078,1820.4,1820.1,1.9874]
[1745656894058,1.09842,1820.2,1820.1,1.9874]
[1745656894268,5.81642,1820.2,1820.1,1.9874]
[1745656894862,4.718,1820.2,1820.1,1.9874]
[1745656895263,6.6119,1820.2,1820.0,5.918]
[1745656895468,5.81645,1820.2,1820.0,5.918]
[1745656895673,1.09848,1820.1,1820.0,5.918]
[1745656895868,1.09854,1820.0,1819.9,1.9728]
[1745656896064,1.09852,1820.1,1819.9,1.9728]
[1745656896371,7.9258,1820.2,1819.9,1.9728]
[1745656896568,1.0985,1820.1,1819.9,1.9728]
[1745656896759,7.9258,1820.2,1819.9,1.9728]
[1745656897066,3.2078,1820.0,1819.7,1.9194]
[1745656897272,3.11715,1819.9,1819.4,5.918]
[1745656897461,5.8177,1819.8,1819.5,1.9929]
[1745656897665,2.0185,1819.9,1819.7,1.0987]
[1745656897666,4.719,1819.9,1819.7,1.0987]
[1745656897868,4.719,1819.9,1819.6,1.09876]
[1745656897869,5.81762,1819.9,1819.6,1.09876]
[1745656898065,4.719,1819.9,1819.7,1.9929]
[1745656898668,5.81762,1819.9,1819.7,1.9929]
[1745656898869,5.81765,1819.9,1819.7,1.9929]
[1745656899182,1.09867,1819.8,1819.7,1.9929]
[1745656899370,4.719,1820.0,1819.8,1.09863]
[1745656899666,4.719,1820.0,1819.9,1.9929]
[1745656899865,5.81754,1820.0,1819.9,1.9929]
[1745656901369,4.719,1820.0,1819.9,3.0915]
[1745656901966,4.719,1820.0,1819.5,2.74706]
[1745656901967,9.719,1820.0,1818.0,3.2078]
[1745656902165,9.719,1820.0,1817.7,3.2078]
[1745656902166,3.2078,1818.1,1817.7,3.2078]
[1745656902373,1.9151,1818.0,1817.7,3.2078]
[1745656902767,3.2078,1818.4,1817.7,8.2078]
[1745656902978,3.2078,1818.4,1817.8,40.8]
[1745656903272,3.2078,1818.0,1817.4,7.09549724]
[1745656903577,3.2078,1818.0,1817.5,40.8]
[1745656903775,4.30779,1817.6,1817.5,40.8]
[1745656903964,1.10006,1817.5,1817.4,7.09549724]
[1745656904276,1.10006,1817.5,1817.4,11.27110724]
[1745656904574,3.15056,1817.5,1817.4,10.10813724]
[1745656904768,2.0505,1817.5,1817.4,10.10813724]
[1745656905170,3.2078,1816.6,1815.4,44.44538093]
[1745656905363,76.56691629,1817.5,1815.4,44.44538093]
[1745656905364,4.30907,1815.5,1815.4,36.62761376]
[1745656905569,4.30907,1815.5,1815.4,32.23473773]
[1745656905774,4.30907,1815.5,1815.4,25.13118136]
[1745656906068,4.30907,1815.5,1815.4,21.99794136]
[1745656906272,8.5158,1815.5,1815.4,21.99794136]
[1745656906477,9.61707,1815.5,1815.4,21.99794136]
[1745656906673,9.61707,1815.5,1814.7,14.07870107]
[1745656906674,8.5158,1815.5,1814.7,14.07870107]
[1745656906869,3.2078,1815.2,1814.7,17.28650107]
[1745656907071,3.2078,1815.2,1815.1,44.02520317]
[1745656907271,3.2078,1815.2,1815.1,67.02533005]
[1745656907474,3.2078,1815.2,1815.1,107.02533005]
[1745656907770,3.2078,1815.2,1815.1,63.00012688]
[1745656907970,3.2078,1815.2,1815.1,23.00012688]
[1745656908170,9.61725,1815.2,1815.1,0.07529509]
[1745656908364,14.1988,1815.2,1814.7,14.07870107]
[1745656908568,4.30949,1814.8,1814.7,14.07870107]
[1745656908972,3.2078,1814.8,1814.7,14.07870107]
[1745656909175,9.61749,1814.8,1814.7,14.07870107]
[1745656909372,8.5158,1814.8,1814.7,14.07870107]
[1745656909673,9.61749,1814.8,1814.7,14.07870107]
[1745656909868,8.5158,1814.8,1814.7,121.02873603]
[1745656910071,3.2078,1815.0,1814.7,121.02873603]
[1745656910275,3.2078,1815.4,1815.1,66.95003496]
[1745656910474,3.2078,1815.2,1814.8,22.92483179]
[1745656910677,1.10169,1814.8,1814.7,14.07870107]
[1745656911064,7.86059,1814.8,1813.9,41.90223]
[1745656911264,7.86059,1814.8,1814.2,1.10206]
[1745656911265,3.2078,1814.3,1814.2,1.10206]
[1745656911477,5.308,1814.8,1814.7,66.95003496]
[1745656911675,2.048,1816.0,1814.7,66.95003496]
[1745656911676,3.2078,1815.7,1814.9,66.95003496]
[1745656911867,3.2078,1815.7,1814.7,3.2078]
[1745656911868,3.2078,1815.7,1815.4,22.92483179]
[1745656912070,8.506777,1816.1,1815.6,66.95003496]
[1745656912266,7.06530267,1816.4,1816.2,66.95003496]
[1745656912467,8.83162833,1816.8,1816.3,73.21058496]
[1745656912673,8.83162833,1816.8,1815.6,24.19608167]
[1745656912674,8.83162833,1816.8,1816.4,22.92483179]
[1745656912872,3.2078,1816.6,1816.4,22.92483179]
[1745656913178,5.308,1816.6,1816.5,66.95003496]
[1745656913378,1.98730268,1816.6,1816.5,70.00269496]
[1745656913578,1.98730268,1816.6,1816.5,93.34680663]
[1745656913873,10.5857,1817.3,1816.5,1.952]
[1745656914075,10.5857,1817.3,1816.2,1.9509]
[1745656914076,5.308,1816.6,1815.8,3.2078]
[1745656914276,5.93,1816.5,1816.2,3.2078]
[1745656914579,5.308,1816.6,1816.5,66.95003496]
[1745656914773,5.308,1816.6,1816.3,1.952]
[1745656914967,5.308,1816.6,1816.4,22.92483179]
[1745656915172,1.10072,1816.4,1816.1,44.02520317]
[1745656915468,5.308,1816.6,1816.5,66.95003496]
[1745656915977,5.308,1816.6,1816.5,75.57587562]
[1745656916174,3.2078,1816.8,1816.5,15.90401491]
[1745656916373,3.2078,1816.8,1816.2,2.064]
[1745656916572,3.2078,1816.8,1816.4,47.23300317]
[1745656916774,1.10066,1816.5,1816.4,3.2078]
[1745656917174,1.10066,1816.5,1816.2,2.064]
[1745656917175,5.308,1816.5,1816.2,2.064]
[1745656917379,1.10072,1816.4,1816.3,15.90401491]
[1745656917577,5.308,1816.5,1816.3,59.92921808]
[1745656917781,1.10073,1816.4,1816.0,3.2078]
[1745656917983,1.10073,1816.4,1813.1,3.2078]
[1745656917984,3.2078,1814.9,1813.1,3.2078]
[1745656918283,3.2078,1813.4,1813.0,2.90237699]
[1745656918584,9.29558,1814.0,1813.1,1.9911]
[1745656918770,3.2078,1813.2,1813.1,4.89347699]
[1745656918971,3.2078,1813.5,1813.1,4.89347699]
[1745656919278,3.2078,1813.2,1813.1,2.90237699]
[1745656919478,3.2078,1813.4,1813.1,2.90237699]
[1745656919974,3.2078,1813.4,1813.0,5.308]
[1745656920185,3.2078,1813.2,1813.0,2.90237699]
[1745656920479,5.308,1813.4,1813.1,40.8]
[1745656920672,1.10233,1813.8,1813.1,40.8]
[1745656920876,3.2078,1813.7,1813.1,40.8]
[1745656921070,3.2078,1813.7,1813.1,41.90272]